fUSD/lending_fUSD_20240612
["ID","MTS","AMOUNT","RATE_DAILY","PERIOD"]
[329288226,1718217058184,-151.0,0.000291,7]
[329288227,1718217058198,-151.0,0.000291,7]
[329288228,1718217058209,-151.0,0.000291,7]
[329288229,1718217058219,-155.20948984,0.00029108,2]
[329288230,1718217058232,-159.41319751,0.00029114,2]
[329288231,1718217058243,-552.82173836,0.00029136,2]
[329288232,1718217058253,-500.0,0.00029136,2]
[329288233,1718217058266,-151.0,0.00029136,7]
[329288234,1718217058277,-152.573036,0.00029136,7]
[329288235,1718217058288,-152.22966,0.00029136,7]
[329288236,1718217058300,-291.624623,0.00029136,7]
[329288237,1718217058311,-151.0,0.00029136,7]
[329288238,1718217058322,-151.0,0.00029136,7]
[329288239,1718217058333,-256.345506,0.00029136,7]
[329288240,1718217058344,-151.0,0.00029136,7]
[329288241,1718217058355,-151.0,0.00029136,7]
[329288242,1718217058365,-151.0,0.00029136,7]
[329288243,1718217058376,-151.0,0.00029136,7]
[329288244,1718217058387,-154.56920933,0.00029151,2]
[329288245,1718217058398,-160.58815834,0.00029156,2]
[329288246,1718217058410,-159.41319751,0.00029237,2]
[329288247,1718217058422,-160.58815834,0.00029257,2]
[329288248,1718217058432,-1847.62319578,0.00029267,2]
[329288249,1718217058444,-500.0,0.00029273,2]
[329288250,1718217058455,-1847.62319578,0.00029297,2]
[329288251,1718217058466,-547.0,0.0002931,30]
[329288252,1718217058476,-500.0,0.00029317,15]
[329288253,1718217058493,-515.8472636,0.00029396,2]
[329288254,1718217058504,-160.10895041,0.00029398,2]
[329288255,1718217058514,-155.62112745,0.00029398,4]
[329288256,1718217058527,-500.0,0.0002941,2]
[329288257,1718217058538,-151.23338322,0.00029466,2]
[329288258,1718217058550,-151.0,0.00029466,7]
[329288259,1718217058561,-151.0,0.00029466,7]
[329288260,1718217058574,-151.0,0.00029466,7]
[329288261,1718217058586,-1338.486378,0.00029466,7]
[329288262,1718217058597,-287.789616,0.00029466,7]
[329288263,1718217058609,-1338.486378,0.00029466,7]
[329288264,1718217058620,-287.789616,0.00029466,7]
[329288265,1718217058631,-178.254448,0.00029466,7]
[329288266,1718217058642,-151.0,0.00029466,7]
[329288267,1718217058662,-151.0,0.00029466,7]
[329288268,1718217058675,-515.8472636,0.00029482,2]
[329288269,1718217058687,-515.8472636,0.00029487,2]
[329288270,1718217058699,-160.58815834,0.00029489,2]
[329288271,1718217058710,-156.707655,0.00029497,2]
[329288272,1718217058722,-9721.14,0.000295,3]
[329288273,1718217058733,-151.0,0.000295,7]
[329288274,1718217058744,-154.979066,0.000295,7]
[329288275,1718217058755,-151.0,0.000295,7]
[329288276,1718217058765,-151.0,0.000295,7]
[329288277,1718217058776,-151.0,0.000295,7]
[329288278,1718217058787,-151.0,0.000295,7]
[329288279,1718217058799,-151.0,0.000295,7]
[329288280,1718217058810,-151.0,0.000295,7]
[329288281,1718217058825,-151.0,0.000295,7]
[329288282,1718217058837,-151.0,0.000295,7]
[329288283,1718217058848,-156.707655,0.00029508,2]
[329288284,1718217058858,-500.0,0.00029547,2]
[329288285,1718217058870,-1847.62319578,0.00029554,2]
[329288286,1718217058881,-1847.62319578,0.00029556,2]
[329288287,1718217058893,-150.0,0.0002956,2]
[329288288,1718217058904,-500.0,0.0002959,15]
[329288289,1718217058915,-150.0,0.00029599,2]
[329288290,1718217058925,-1000.0,0.00029617,2]
[329288291,1718217058937,-413.92057913,0.0002964,2]
[329288292,1718217058949,-218.65835764,0.00029647,2]
[329288293,1718217058962,-515.8472636,0.00029685,2]
[329288294,1718217058973,-506.40092381,0.00029699,2]
[329288295,1718217058985,-232.52690735,0.000297,2]
[329288296,1718217058997,-171.20251911,0.000297,2]
[329288297,1718217059009,-260.58271532,0.000297,2]
[329288298,1718217059020,-196.47451964,0.000297,2]
[329288299,1718217059031,-280.0,0.000297,2]
[329288300,1718217059042,-153.72976904,0.00029705,2]
[329288301,1718217059052,-382.13509686,0.00029715,2]
[329288302,1718217059063,-200.0,0.00029759,2]
[329288303,1718217059073,-1000.0,0.00029759,30]
[329288304,1718217059083,-500.0,0.00029759,2]
[329288305,1718217059094,-200.0,0.00029759,2]
[329288306,1718217059106,-155.20948985,0.00029775,2]
[329288307,1718217059117,-218.65835764,0.00029782,2]
[329288308,1718217059129,-200.28869414,0.0002979,2]
[329288309,1718217059139,-500.0,0.00029799,2]
[329288310,1718217059150,-500.0,0.00029799,2]
[329288311,1718217059161,-500.0,0.00029799,2]
[329288312,1718217059171,-190.43234757,0.00029799,2]
[329288313,1718217059182,-171.2025191,0.000298,2]
[329288314,1718217059194,-17280.73561734,0.000298,7]
[329288315,1718217059205,-155.0,0.000298,19]
[329288316,1718217059218,-155.0,0.000298,2]
[329288317,1718217059228,-155.0,0.000298,2]
[329288318,1718217059239,-226421.36758966,0.000298,2]
[329288319,1718217059402,-593.48788872,0.000298,2]
[329288320,1718217059424,-2356.43045917,0.000298,2]
[329288321,1718217059439,-2835.79270651,0.000298,2]
[329288322,1718217059459,-289.29978316,0.000298,2]
[329288323,1718217059477,-412.1753019,0.000298,2]
[329288324,1718217059497,-296.13443335,0.000298,2]
[329288325,1718217059518,-500.0,0.0002793,2]
[329288326,1718217059531,-2490.17338876,0.000298,2]
[329288327,1718217059548,-4370.12081826,0.000298,2]
[329288328,1718217059566,-595.805002,0.000298,2]
[329288329,1718217059590,-716.30002,0.00028,2]
[329288330,1718217059607,-183.33051233,0.00028,2]
[329288331,1718217059619,-316.66948767,0.000298,2]
[329288332,1718217059634,-9718.30328382,0.000298,2]
[329288333,1718217059660,-18273.55347993,0.000298,2]
[329288334,1718217059679,-2820.89888294,0.000298,2]
[329288335,1718217059695,-647.5444773,0.000298,2]
[329288336,1718217059716,-899.63053233,0.00028,2]
[329288337,1718217059730,-3242.95506444,0.000298,2]
[329288338,1718217059747,-4445.23740939,0.000298,2]
[329288339,1718217059771,-34675.80130308,0.000298,2]
[329288340,1718217154078,455.83,0.00024391,30]
[329288341,1718217224690,610192.24482039,0.00014,2]
[329288342,1718217271222,21916.12192208,0.0001298,2]
[329288343,1718217275619,2500.0,0.00031854,30]
[329288347,1718217446322,160.0,0.00031854,30]
[329288354,1718217693380,417.84,0.00024329,30]
[329288372,1718218238279,-275.92831165,0.00014898,2]
[329288374,1718218238294,-2337.61531293,0.00014899,2]
[329288376,1718218238314,-633.4732,0.000149,2]
[329288377,1718218238330,-323.44664399,0.000149,2]
[329288378,1718218238345,-151.9,0.0001499,2]
[329288379,1718218238369,-150.0,0.00014993,2]
[329288380,1718218238386,-150.0,0.00014993,2]
[329288381,1718218238403,-576.12188171,0.00014994,2]
[329288382,1718218238418,-536.37434974,0.00014995,2]
[329288383,1718218238675,-9730.21094722,0.00014999,2]
[329288384,1718218238738,-48535.17012031,0.00014999,2]
[329288385,1718218238756,-25014.84779909,0.00014999,2]
[329288386,1718218238947,-3949.36502979,0.00014999,2]
[329288387,1718218238962,-666.28,0.00014999,2]
[329288388,1718218239347,-1371.96242807,0.00014999,2]
[329288391,1718218239361,-2435.2904395,0.00014999,2]
[329288393,1718218239376,-19329.88199996,0.00014999,2]
[329288395,1718218239388,-60403.45220671,0.00014999,2]
[329288397,1718218239401,-167478.82965918,0.00014999,2]
[329288401,1718218239522,-46541.76347371,0.00014999,2]
[329288419,1718218239720,-24341.63434138,0.00014999,2]
[329288421,1718218239733,-498.9252,0.00014999,2]
[329288423,1718218239746,-2380.1793995,0.00014999,2]
[329288717,1718218243304,-13750.2,0.00014999,2]
[329289005,1718218246754,-280.62050714,0.00014999,2]
[329289021,1718218246937,-1586.11759421,0.00014999,2]
[329289023,1718218246951,-34739.4,0.00014999,2]
[329289025,1718218246964,-14894.27888593,0.00014999,2]
[329289027,1718218246977,-10290.67032,0.00014999,2]
[329289029,1718218246989,-5845.67892654,0.00014999,2]
[329289031,1718218247002,-325.93999993,0.00014999,2]
[329289033,1718218247016,-197221.81893035,0.00014999,2]
[329289035,1718218247028,-349736.19168628,0.00015,2]
[329289037,1718218247040,-886.96472751,0.00015,2]
[329289038,1718218247071,-12238.41025431,0.00015,2]
[329289039,1718218247082,-179.61,0.00016712,2]
[329289040,1718218247092,-150.0,0.00016959,2]
[329289041,1718218247105,-499.99,0.00016992,2]
[329289042,1718218247116,-323.22,0.00016992,2]
[329289043,1718218247127,-235.77130805,0.00017258,2]
[329289044,1718218247138,-1089.88041119,0.00018686,5]
[329289045,1718218247149,-250.0,0.00019027,2]
[329289046,1718218247159,-199.13,0.00019135,2]
[329289047,1718218247169,-157.92307421,0.00019178,2]
[329289048,1718218247180,-500.0,0.00019178,2]
[329289049,1718218247190,-314.8120142,0.00019178,2]
[329289050,1718218247201,-515.51186943,0.00019178,2]
[329289051,1718218247211,-500.0,0.00019178,2]
[329289052,1718218247222,-367.35231988,0.00019178,2]
[329289054,1718218247232,-150.0,0.00019178,2]
[329289056,1718218247243,-255.76430325,0.00019178,2]
[329289058,1718218247254,-500.0,0.00019178,2]
[329289060,1718218247265,-500.0,0.00019178,2]
[329289062,1718218247275,-518.57634638,0.00019178,2]
[329289064,1718218247286,-500.0,0.00019178,2]
[329289066,1718218247297,-500.0,0.00019178,2]
[329289068,1718218247311,-500.0,0.00019178,2]
[329289070,1718218247322,-155.37234522,0.00019178,2]
[329289072,1718218247333,-98843.11657695,0.00019178,2]
[329289074,1718218247344,-500.0,0.00019178,2]
[329289076,1718218247361,-500.0,0.00019178,2]
[329289078,1718218247371,-500.0,0.00019178,2]
[329289080,1718218247386,-500.0,0.00019178,2]
[329289082,1718218247402,-354.73728044,0.00019178,2]
[329289084,1718218247412,-180.90072413,0.00019178,2]
[329289086,1718218247424,-298.07871989,0.00019178,2]
[329289088,1718218247435,-150.89720127,0.00019178,2]
[329289090,1718218247445,-500.0,0.00019178,2]
[329289092,1718218247456,-497.41899693,0.00019178,2]
[329289094,1718218247467,-151.31661169,0.00019178,2]
[329289096,1718218247478,-323.22,0.00019256,2]
[329289098,1718218247489,-400.0,0.00019286,2]
[329289100,1718218247500,-593.46439886,0.00019315,2]
[329289102,1718218247511,-500.0,0.00019315,2]
[329289105,1718218247522,-608.0592,0.00019315,2]
[329289106,1718218247532,-512.69821923,0.00019315,2]
[329289109,1718218247543,-330.14708595,0.00019315,2]
[329289110,1718218247555,-300.14317843,0.00019451,2]
[329289112,1718218247565,-500.0,0.00019452,2]
[329289115,1718218247576,-500.0,0.00019589,2]
[329289116,1718218247586,-500.0,0.00019726,2]
[329289119,1718218247597,-500.0,0.00019863,2]
[329289121,1718218247612,-500.0,0.0002,2]
[329289123,1718218247623,-1982.3429442,0.0002,2]
[329289125,1718218247637,-226.74152349,0.000201,2]
[329289127,1718218247648,-161.65494078,0.00020136,2]
[329289129,1718218247661,-1250.0,0.00021,2]
[329289131,1718218247673,-250.0,0.00021272,2]
[329289133,1718218247683,-323.22,0.0002152,2]
[329289135,1718218247694,-400.0,0.00021697,2]
[329289137,1718218247705,-199.13,0.00021875,2]
[329289139,1718218247717,-231.73,0.00021918,2]
[329289141,1718218247727,-330.12,0.00021918,2]
[329289143,1718218247738,-250.0,0.00021918,2]
[329289145,1718218247748,-1300.0,0.00023,2]
[329289147,1718218247759,-2309.83124306,0.000236,2]
[329289149,1718218247770,-6290.14,0.00023769,2]
[329289151,1718218247780,-323.22,0.00023783,2]
[329289153,1718218247792,-1251.33586428,0.00024,3]
[329289155,1718218247803,-156.70765501,0.00024035,2]
[329289157,1718218247814,-154.82327134,0.00024073,2]
[329289159,1718218247825,-400.0,0.00024108,2]
[329289161,1718218247836,-5795.9,0.00024174,2]
[329289163,1718218247847,-1149.16,0.00024174,2]
[329289165,1718218247863,-26850.54057751,0.00024174,2]
[329289167,1718218247880,-659.47942249,0.00024174,2]
[329289168,1718218247891,-454.56477832,0.00024174,2]
[329289169,1718218247906,-6.91522168,0.00024174,2]
[329289170,1718218247917,-806.07803676,0.00024271,2]
[329289171,1718218247928,-1000.0,0.00024328,2]
[329289172,1718218247941,-392.69511496,0.00024329,2]
[329289173,1718218247955,-282.28214504,0.00024329,2]
[329289174,1718218247965,-154.75417908,0.00024368,2]
[329289175,1718218247976,-155.26,0.00024384,2]
[329289176,1718218247987,-252.28,0.00024384,2]
[329289177,1718218247998,-806.07803676,0.00024559,2]
[329289178,1718218248008,-199.13,0.00024614,2]
[329289179,1718218248019,-188.10968945,0.00024667,2]
[329289180,1718218248031,-151.37886299,0.00024695,2]
[329289182,1718218248041,-806.07803676,0.00024737,2]
[329289185,1718218248073,-806.07803676,0.00024743,2]
[329289187,1718218248084,-171.04395707,0.00024798,2]
[329289189,1718218248095,-171.04395705,0.00024798,2]
[329289191,1718218248108,-171.04395705,0.00024798,2]
[329289194,1718218248119,-171.04395705,0.00024798,2]
[329289197,1718218248135,-155.0,0.00025,2]
[329289200,1718218248146,-225.34445904,0.00025,2]
[329289202,1718218248157,-14477.41742419,0.00025,2]
[329289204,1718218248168,-706.94373209,0.00025,2]
[329289206,1718218248179,-326.33400151,0.00025,2]
[329289208,1718218248190,-1350.0,0.00025,2]
[329289210,1718218248204,-1000.16,0.00025,2]
[329289212,1718218248215,-305.4,0.00025,2]
[329289214,1718218248226,-1277.7583517,0.00025001,2]
[329289216,1718218248239,-153.37570353,0.00025014,2]
[329289218,1718218248249,-264.48809124,0.00025093,2]
[329289220,1718218248264,-541.58994552,0.00025093,2]
[329289223,1718218248278,-154.75417908,0.00025135,2]
[329289225,1718218248290,-154.75417908,0.00025157,2]
[329289227,1718218248300,-806.07803676,0.00025223,2]
[329289229,1718218248312,-806.07803676,0.00025283,2]
[329289231,1718218248322,-806.07803676,0.00025291,2]
[329289233,1718218248335,-153.37570353,0.00025355,2]
[329289235,1718218248349,-159.41319752,0.00025365,2]
[329289237,1718218248363,-171.04395705,0.00025372,2]
[329289239,1718218248377,-154.56920934,0.00025417,2]
[329289241,1718218248389,-151.37886299,0.00025453,2]
[329289243,1718218248400,-806.07803676,0.00025466,2]
[329289245,1718218248413,-245.38209026,0.00025478,2]
[329289248,1718218248435,-560.6959465,0.00025478,2]
[329289250,1718218248448,-549.7110208,0.00025483,2]
[329289252,1718218248463,-151.37886299,0.00025562,2]
[329289254,1718218248475,-806.07803676,0.00025634,2]
[329289256,1718218248487,-151.37886299,0.00025645,2]
[329289258,1718218248498,-153.37570353,0.00025713,2]
[329289260,1718218248511,-156.70765501,0.00025715,2]
[329289262,1718218248525,-160.58815836,0.00025723,2]
[329289264,1718218248538,-806.07803676,0.00025782,2]
[329289266,1718218248550,-153.72976904,0.00025869,2]
[329289268,1718218248562,-806.07803676,0.00025902,2]
[329289270,1718218248576,-156.70765501,0.00025987,2]
[329289272,1718218248588,-11913.73655351,0.00026,5]
[329289274,1718218248602,-7437.3323675,0.00026,5]
[329289276,1718218248616,-4501.07265661,0.00026,5]
[329289278,1718218248636,-1500.0,0.00026027,30]
[329289280,1718218248649,-323.22,0.00026047,2]
[329289282,1718218248664,-180.0,0.00026146,2]
[329289285,1718218248677,-154.56920934,0.00026162,2]
[329289287,1718218248688,-1500.0,0.00026301,30]
[329289288,1718218248699,-2000.0,0.00026301,3]
[329289290,1718218248709,-154.75417908,0.00026329,2]
[329289291,1718218248720,-156.70765501,0.00026344,2]
[329289292,1718218248731,-806.07803676,0.00026405,2]
[329289294,1718218248742,-154.13615403,0.00026417,2]
[329289296,1718218248752,-806.07803676,0.00026454,2]
[329289298,1718218248763,-154.75417908,0.00026502,2]
[329289300,1718218248774,-400.0,0.00026518,2]
[329289302,1718218248784,-1500.0,0.00026575,30]
[329289304,1718218248794,-153.39895734,0.00026674,2]
[329289306,1718218248805,-151.37886299,0.00026679,2]
[329289308,1718218248815,-806.07803676,0.00026811,2]
[329289310,1718218248826,-154.13615403,0.00026833,2]
[329289312,1718218248836,-1500.0,0.00026849,30]
[329289314,1718218248847,-806.07803676,0.00026917,2]
[329289316,1718218248860,-154.75417908,0.00026981,2]
[329289319,1718218248875,-151.9,0.0002699,2]
[329289321,1718218248885,-5670.3417431,0.00027,2]
[329289323,1718218248899,-3293.66788442,0.00027,2]
[329289326,1718218248925,-500.0,0.00019178,2]
[329289328,1718218248938,-1154.000128,0.00027,2]
[329289331,1718218248962,-689.355,0.00027,2]
[329289334,1718218248974,-2645.83678681,0.00027,2]
[329289336,1718218248987,-4351.18289573,0.00027,2]
[329289338,1718218248997,-9448.81710427,0.00027,3]
[329289347,1718218249100,-20000.0,0.00019178,2]
[329289349,1718218249114,-500.0,0.00019178,2]
[329289351,1718218249129,-500.0,0.00019315,2]
[329289353,1718218249140,-41176.31937038,0.00027,3]
[329289355,1718218249151,-11055.57712869,0.00027,2]
[329289357,1718218249162,-256643.76779583,0.00027,2]
[329289359,1718218249173,-1400.0,0.00027,2]
[329289361,1718218249184,-150.0,0.00027,2]
[329289363,1718218249194,-200.0,0.00027,2]
[329289365,1718218249205,-1500.0,0.00027123,30]
[329289367,1718218249216,-156.70765501,0.00027143,2]
[329289369,1718218249226,-2013.69130441,0.000272,2]
[329289371,1718218249237,-151.36047296,0.00027312,2]
[329289373,1718218249248,-151.37886299,0.00027325,2]
[329289375,1718218249259,-11091.89,0.0002737,2]
[329289377,1718218249270,-151.37886299,0.00027379,2]
[329289379,1718218249281,-2259.32546532,0.00027397,2]
[329289381,1718218249292,-8321.29832402,0.00027397,2]
[329289383,1718218249303,-150.0,0.00027397,2]
[329289385,1718218249314,-1500.0,0.00027397,30]
[329289387,1718218249325,-3000.0,0.00027397,2]
[329289389,1718218249336,-2252.75786056,0.00027397,2]
[329289391,1718218249346,-500.0,0.00027397,2]
[329289393,1718218249360,-217.12690964,0.00027397,2]
[329289395,1718218249370,-500.0,0.00027397,2]
[329289397,1718218249384,-500.0,0.00027397,2]
[329289399,1718218249395,-500.0,0.00027397,2]
[329289401,1718218249405,-500.0,0.00027397,2]
[329289403,1718218249417,-500.0,0.00027397,2]
[329289405,1718218249428,-500.0,0.00027397,2]
[329289407,1718218249438,-165.62854802,0.00027397,2]
[329289409,1718218249450,-500.0,0.00027397,2]
[329289411,1718218249461,-500.0,0.00027397,2]
[329289413,1718218249472,-500.0,0.00027397,2]
[329289415,1718218249482,-500.0,0.00027397,2]
[329289417,1718218249494,-500.0,0.00027397,2]
[329289419,1718218249505,-196.07,0.00027397,2]
[329289421,1718218249516,-150.0,0.00027397,2]
[329289423,1718218249528,-272.1,0.00027397,10]
[329289425,1718218249539,-300.04,0.00027397,10]
[329289427,1718218249551,-250.04,0.00027397,10]
[329289429,1718218249561,-1163.53444751,0.000274,2]
[329289431,1718218249573,-155.87,0.000274,2]
[329289433,1718218249585,-155.87,0.000274,2]
[329289435,1718218249596,-155.87,0.000274,2]
[329289437,1718218249611,-155.87,0.000274,2]
[329289439,1718218249622,-152.0,0.00027417,3]
[329289441,1718218249635,-189.83650017,0.000275,2]
[329289443,1718218249647,-150.0,0.00027534,2]
[329289445,1718218249657,-159.41319752,0.00027599,2]
[329289447,1718218249668,-171.04395705,0.00027636,2]
[329289449,1718218249679,-806.07803676,0.00027653,2]
[329289451,1718218249690,-150.0,0.00027671,2]
[329289453,1718218249701,-1500.0,0.00027671,30]
[329289455,1718218249712,-806.07803676,0.00027689,2]
[329289457,1718218249723,-150.0,0.00027808,2]
[329289459,1718218249734,-140.80899536,0.00027827,2]
[329289462,1718218249752,-13.94518372,0.00027827,2]
[329289464,1718218249763,-154.75417908,0.0002783,2]
[329289466,1718218249774,-500.0,0.00027877,2]
[329289468,1718218249784,-156.21731265,0.00027886,2]
[329289470,1718218249798,-343.78268735,0.00027886,2]
[329289472,1718218249809,-153.19921265,0.00027889,2]
[329289474,1718218249822,-15.45554506,0.00027889,2]
[329289476,1718218249833,-306.95,0.0002789,3]
[329289478,1718218249844,-500.0,0.00027894,2]
[329289481,1718218249861,-266.2781261,0.000279,2]
[329289483,1718218249872,-500.0,0.00027903,2]
[329289485,1718218249885,-500.0,0.00027912,2]
[329289486,1718218249898,-1049.90632884,0.00027912,2]
[329289489,1718218249911,-473.28023069,0.00027912,2]
[329289491,1718218249924,-1917.30000001,0.00027912,2]
[329289519,1718218250228,-4184.28834802,0.00019315,2]
[329290346,1718218265527,383.02,0.00024329,30]
[329290349,1718218345828,160.0,0.00031828,30]
[329290354,1718218861589,351.1,0.00024329,30]
[329290359,1718219246247,160.0,0.00031821,30]
[329290367,1718219436587,-1000.0,0.00014805,2]
[329290368,1718219436599,-56.88918095,0.00014805,2]
[329290369,1718219436666,-9167.1103353,0.00014805,2]
[329290370,1718219436679,-4446.54749549,0.00014805,2]
[329290371,1718219436693,-35499.39644139,0.00014805,2]
[329290372,1718219436708,-2369.82868961,0.00014806,2]
[329290373,1718219436724,-450.23242123,0.00014806,2]
[329290374,1718219436736,-183.95220777,0.00014806,2]
[329290375,1718219436750,-3067.01080739,0.00014806,2]
[329290376,1718219436763,-895.95924622,0.00014807,2]
[329290377,1718219436773,-2371.55822223,0.00014807,2]
[329290378,1718219436786,-490.7854506,0.00014808,2]
[329290379,1718219436797,-283.05405897,0.00014808,2]
[329290380,1718219436810,-546.04285463,0.00014809,2]
[329290381,1718219436820,-151.39412324,0.00014811,2]
[329290382,1718219436833,-300.0,0.00014904,2]
[329290383,1718219436845,-3338.42722587,0.00014905,2]
[329290384,1718219436855,-2155.01321686,0.0001505,2]
[329290385,1718219436868,-443.4070616,0.00015065,2]
[329290386,1718219436881,-266.32,0.00015065,2]
[329290387,1718219436893,-7409.01,0.00015065,2]
[329290388,1718219436903,-9999.99,0.00015065,2]
[329290389,1718219436915,-499.99,0.00015171,2]
[329290390,1718219436925,-150.99,0.00015171,2]
[329290391,1718219436937,-352.71,0.00015171,2]
[329290392,1718219436948,-150.99,0.00015171,2]
[329290393,1718219436960,-1723.61,0.00015171,2]
[329290394,1718219436976,-1909.0446,0.00015171,2]
[329290395,1718219436988,-420.0,0.00016313,2]
[329290396,1718219436999,-587.0,0.00017856,2]
[329290397,1718219437010,-153.31,0.00017904,2]
[329290398,1718219437021,-500.0,0.00019178,2]
[329290399,1718219437034,-500.0,0.00019178,2]
[329290400,1718219437048,-500.0,0.00019178,2]
[329290401,1718219437063,-500.0,0.00019178,2]
[329290402,1718219437088,-500.0,0.00019178,2]
[329290403,1718219437104,-336.67,0.00019178,2]
[329290404,1718219437116,-500.0,0.00019178,2]
[329290405,1718219437134,-500.0,0.00019178,2]
[329290406,1718219437147,-500.0,0.00019178,2]
[329290407,1718219437159,-500.0,0.00019178,2]
[329290408,1718219437178,-500.0,0.00019178,2]
[329290409,1718219437378,-500.0,0.00019178,2]
[329290410,1718219437389,-539.34987764,0.00019178,2]
[329290411,1718219437400,-500.0,0.00019178,2]
[329290412,1718219437412,-500.0,0.00019178,2]
[329290413,1718219437422,-513.5207313,0.00019178,2]
[329290414,1718219437434,-500.0,0.00019178,2]
[329290415,1718219437445,-500.0,0.00019178,2]
[329290416,1718219437456,-500.0,0.00019178,2]
[329290417,1718219437466,-508.43520985,0.00019178,2]
[329290418,1718219437479,-134.14710819,0.00019178,2]
[329290419,1718219437492,-48.53415181,0.00019178,2]
[329290420,1718219437526,-278.86390198,0.00019178,2]
[329290421,1718219437541,-221.13609802,0.00019178,2]
[329290422,1718219437553,-500.0,0.00019178,2]
[329290423,1718219437565,-140.88490198,0.00019178,2]
[329290424,1718219437586,-359.11509802,0.00019178,2]
[329290425,1718219437599,-500.0,0.00019178,2]
[329290427,1718219437609,-500.0,0.00019178,2]
[329290429,1718219437620,-500.0,0.00019178,2]
[329290430,1718219437632,-500.0,0.00019178,2]
[329290432,1718219437643,-500.0,0.00019178,2]
[329290433,1718219437654,-500.0,0.00019178,2]
[329290434,1718219437664,-500.0,0.00019178,2]
[329290435,1718219437675,-500.0,0.00019178,2]
[329290438,1718219437686,-555.0,0.00019315,2]
[329290440,1718219437697,-844.0,0.00019315,2]
[329290442,1718219437708,-240.46,0.00019315,2]
[329290443,1718219437721,-500.0,0.00019315,2]
[329290445,1718219437732,-500.0,0.00019315,2]
[329290447,1718219437742,-353.16061531,0.00019315,2]
[329290449,1718219437755,-146.83938469,0.00019315,2]
[329290451,1718219437765,-614.06,0.00019315,2]
[329290453,1718219437776,-500.0,0.00019315,2]
[329290455,1718219437787,-500.0,0.00019315,2]
[329290458,1718219437797,-235.11008354,0.00019315,2]
[329290461,1718219437808,-500.0,0.00019315,2]
[329290464,1718219437819,-500.0,0.00019315,2]
[329290466,1718219437829,-823.0,0.00019544,2]
[329290469,1718219437841,-226.74152349,0.000201,2]
[329290472,1718219437851,-325.39,0.00021237,2]
[329290475,1718219437862,-1152.0,0.00021392,2]
[329290477,1718219437873,-193.1,0.00021918,2]
[329290478,1718219437884,-280.0,0.00022128,2]
[329290479,1718219437894,-250.0,0.00023201,2]
[329290480,1718219437906,-199.3,0.00023346,2]
[329290481,1718219437918,-168.1,0.00023352,2]
[329290482,1718219437929,-250.0,0.00023368,2]
[329290484,1718219437940,-1613.0,0.00023414,2]
[329290485,1718219437953,-462.21,0.00023477,2]
[329290487,1718219437964,-325.39,0.00023501,2]
[329290489,1718219437978,-275.1,0.00023702,2]
[329290491,1718219437989,-153.37570353,0.0002415,2]
[329290493,1718219438000,-1641.15194145,0.0002417,2]
[329290495,1718219438010,-154.75417908,0.00024171,2]
[329290497,1718219438021,-159.41319753,0.00024171,2]
[329290499,1718219438032,-153.37570353,0.00024178,2]
[329290501,1718219438043,-390.5,0.00024225,2]
[329290503,1718219438057,-250.0,0.00024313,2]
[329290505,1718219438067,-1000.0,0.00024328,2]
[329290507,1718219438079,-1042.33917751,0.00024329,2]
[329290509,1718219438093,-353.16,0.00024384,2]
[329290513,1718219438116,-295.56194681,0.00024436,2]
[329290514,1718219438135,-158.32026496,0.00024545,2]
[329290515,1718219438153,-151.378863,0.00024558,2]
[329290516,1718219438165,-153.37570353,0.00024629,2]
[329290517,1718219438177,-154.75417908,0.00024631,2]
[329290518,1718219438190,-154.75417908,0.00024661,2]